[Event "8th Montevideo Open 2025"]
[Site "Montevideo"]
[Date "2025.02.04"]
[Round "4.13"]
[White "Bauza, Alejandro"]
[Black "Cayetano, Juan"]
[Result "0-1"]
[Annotator "NA RC"]
[ECO "E01"]
[WhiteElo "2116"]
[BlackElo "1940"]
[PlyCount "72"]
[EventDate "2025.02.01"]
[EventType "swiss"]
[EventCountry "URU"]
[SourceTitle "playchess.com"]
[Source "ChessBase"]
[SourceQuality "1"]
[TimeControl "5400+30"]

1. Nf3 {[%emt 0:00:07]} d5 {[%emt 0:02:30]} 2. d4 {[%emt 1:31:23]} Nf6 {[%emt 0:03:22]} 3. c4 {[%emt 0:00:00]} e6 {[%emt 0:09:46]} 4. g3 {[%emt 0:00:00]} Ne4 {[%emt 0:11:46]} 5. Bg2 {[%emt 0:00:00]} g6 {[%emt 1:05:36]} 6. Nc3 {[%emt 0:00:00]} Bg7 {[%emt 0:00:00]} 7. cxd5 {[%emt 0:00:00]} exd5 {[%emt 0:00:00]} 8. Qb3 {[%emt 0:00:00]} Nxc3 {[%emt 0:00:00]} 9. bxc3 {[%emt 0:00:00]} O-O {[%emt 0:00:00]} 10. Bg5 {[%emt 0:00:00]} f6 {[%emt 0:02:30]} 11. Bf4 {[%emt 0:00:00]} Re8 12. O-O {[%emt 0:00:00]} c6 13. Rfe1 {[%emt 0:05:30]} Kh8 {[%emt 0:00:00]} 14. c4 {[%emt 0:00:00]} g5 {[%emt 0:00:00]} 15. Bxb8 {[%emt 0:00:00]} dxc4 {[%emt 0:00:00]} 16. Qxc4 {[%emt 0:00:00]} Rxb8 {[%emt 0:00:00]} 17. e4 {[%emt 0:00:00]} Be6 {[%emt 0:00:00]} 18. Qa4 {[%emt 0:00:00]} a5 {[%emt 0:00:00]} 19. Rad1 {[%emt 0:00:00]} b5 {[%emt 0:00:00]} 20. Qc2 {[%emt 0:00:00]} Qd7 {[%emt 0:00:00]} 21. d5 {[%emt 0:00:00]} cxd5 {[%emt 0:00:00]} 22. exd5 {[%emt 0:00:00]} Bf5 {[%emt 0:00:00]} 23. Qd2 {[%emt 0:00:00]} b4 {[%emt 0:00:00]} 24. Nd4 {[%emt 0:00:00]} Bg4 {[%emt 0:00:00]} 25. Rc1 {[%emt 0:00:00]} f5 {[%emt 0:00:32]} 26. Ne6 {[%emt 0:00:00]} Bc3 {[%emt 0:01:44]} 27. Qxg5 {[%emt 0:00:00]} Qe7 {[%emt 0:02:12]} 28. Qh6 {[%emt 0:00:02]} Qf6 {[%emt 0:00:52]} 29. Qxf6+ {[%emt 0:02:01]} Bxf6 {[%emt 0:00:03]} 30. d6 {[%emt 0:00:36]} Rb6 {[%emt 0:01:54]} 31. Bc6 {[%emt 0:01:08]} Rc8 {[%emt 0:00:47]} 32. Ba4 {[%emt 0:00:54]} Rxc1 {[%emt 0:01:28]} 33. Rxc1 {[%emt 0:00:02]} h6 {[%emt 0:00:33]} 34. Rc6 {[%emt 0:00:56]} Rxc6 {[%emt 0:01:20]} 35. Bxc6 {[%emt 0:00:05]} f4 {[%emt 0:00:28]} 36. Nxf4 {[%emt 0:00:07]} Kg8 {[%emt 0:00:33]} 0-1

[Event "8th Montevideo Open 2025"]
[Site "Montevideo"]
[Date "2025.02.04"]
[Round "4.15"]
[White "De Lima, Adriano Gaspar"]
[Black "Balseca Moreno, Diego"]
[Result "1-0"]
[Annotator "TA"]
[ECO "E81"]
[WhiteElo "2073"]
[BlackElo "2269"]
[PlyCount "85"]
[EventDate "2025.02.01"]
[EventType "swiss"]
[EventCountry "URU"]
[SourceTitle "playchess.com"]
[Source "ChessBase"]
[SourceQuality "1"]
[TimeControl "5400+30"]

{[%evp 17,85,0,0,0,0,-18,-7,-23,-35,-65,-14,-50,-61,-60,-56,-72,70,76,75,73,76,76,75,77,77,70,101,68,108,113,132,126,140,120,108,120,170,148,266,241,396,356,337,293,453,455,568,554,780,807,731,829,775,726,837,849,928,924,1260,1035,1761,1562,1615,1583,2188,1763,1565,1947,1616,1536]} 1. d4 {[%emt 0:00:02]} Nf6 {[%emt 0:07:07]} 2. c4 {[%emt 0:02:53]} g6 {[%emt 0:00:14]} 3. Nc3 {[%emt 0:02:38]} Bg7 {[%emt 0:00:06]} 4. e4 {[%emt 0:01:16]} d6 {[%emt 0:00:09]} 5. f3 {[%emt 0:00:19]} O-O {[%emt 0:01:10]} 6. Be3 {[%emt 0:02:02]} c5 {[%emt 0:00:19]} 7. Nge2 {[%emt 0:01:07]} Qa5 {[%emt 0:00:09]} 8. Qd2 {[%emt 0:01:43]} Nc6 {[%emt 0:00:08]} 9. d5 {[%emt 0:06:26] 9.Rd1 is the modern continuation.} Ne5 {[%emt 0:00:05]} 10. Ng3 {[%emt 0:00:14] E81: King's Indian: Sämisch: 6th move deviations (including 6 Be3 c6).} Nfd7 {[%emt 0:00:07] has lost popularity (10...h5).} 11. Rc1 {[%emt 0:01:23]} a6 {[%emt 0:02:13][%cal Ob7b5]} 12. Be2 {[%emt 0:01:12] [#] The position is equal.} b5 $1 {[%emt 0:01:10]} 13. cxb5 {[%emt 0:03:05]} (13. b3 bxc4) 13... axb5 {[%emt 0:00:25] Black sacrificed a pawn} ({Better is} 13... Nb6 $1 $15 14. b3 (14. f4 $2 Nec4 $19) 14... axb5 15. Bxb5 Ba6) 14. Nxb5 {[%emt 0:03:16]} Qxd2+ $146 {[%emt 0:01:51]} (14... Qb6 15. f4 Ng4 16. Bxg4 Qxb5 17. b3 Ra3 18. Be2 Qb7 19. O-O Qa8 20. Rc2 h5 21. Bd3 Ba6 22. Bxa6 Qxa6 23. Re1 Ra8 {½-½ Jagadeesh,A (2068)-Anshuman,K (1965) IND-chB 51st 2013 (13)}) 15. Bxd2 {[%emt 1:10:24]} Nb6 {[%emt 0:06:20]} ({Of course not} 15... Rxa2 $6 16. f4 $11) 16. a3 {[%emt 0:00:00]} Ba6 {[%emt 0:06:58]} (16... Bd7 $17 17. f4 Nec4 18. Rxc4 Bxb5) 17. Nc7 $36 {[%emt 0:00:00][%csl LRa6,LRa8][%mdl 2048] White is in control.} Bxe2 {[%emt 0:00:05]} 18. Nxa8 {[%emt 0:00:00]} (18. Kxe2 Rab8 19. b4 Nbc4 $19) 18... Nd3+ {[%emt 0:00:04]} 19. Kxe2 {[%emt 0:00:00]} Nxc1+ {[%emt 0:00:04]} 20. Rxc1 {[%emt 0:00:00]} Rxa8 {[%emt 0:00:07]} 21. Bc3 {[%emt 0:00:00]} Bh6 {[%emt 0:03:24]} 22. Rc2 {[%emt 0:00:00]} Nc4 {[%emt 1:09:15]} 23. Nf1 {[%emt 0:00:00] Prevents Ne3} e6 {[%emt 0:00:00]} 24. Bd2 {[%emt 0:00:00]} Nxd2 {[%emt 0:00:00]} 25. Nxd2 {[%emt 0:00:00]} exd5 {[%emt 0:00:00]} 26. exd5 {[%emt 0:00:00]} Bxd2 {[%emt 0:00:00]} (26... Re8+ $16 27. Kf1 Bxd2 28. Rxd2 Re3) 27. Rxd2 $16 {[%emt 0:00:00][%mdl 4096] Endgame KR-KR. White is a pawn up.} Kg7 {[%emt 0:00:00]} (27... Kf8 $16 28. Kd3 Ke7 29. Re2+ Kd7) 28. Kd3 $18 {[%emt 0:00:00]} Kf6 $2 {[%emt 0:00:00] [#]} (28... Ra4 29. Re2 Rd4+ 30. Kc3 Rxd5) 29. Re2 $1 {[%emt 0:00:00]} Ra4 {[%emt 0:00:00]} 30. Re4 {[%emt 0:00:00] Wards off Rd4+} Ra7 {[%emt 0:00:00]} (30... Ra8 {is a better defense.} 31. h4 h5) 31. Kc4 {[%emt 0:00:00] White is clearly winning.} Ra5 {[%emt 0:00:00]} 32. Re2 {[%emt 0:00:00]} h5 {[%emt 0:00:00]} 33. b4 {[%emt 0:00:00]} cxb4 {[%emt 0:00:00]} 34. axb4 {[%emt 0:00:00][%cal Ba3b4,Bb4b5,Bb5b6][%mdl 32]} Ra1 {[%emt 0:00:00]} 35. Kb5 {[%emt 0:00:00]} Rc1 {[%emt 0:00:00]} 36. Kb6 {[%emt 0:00:00]} g5 {[%emt 0:00:00]} 37. b5 {[%emt 0:00:00]} g4 {[%emt 0:00:00]} 38. fxg4 {[%emt 0:00:00]} hxg4 {[%emt 0:00:00]} 39. Ka7 {[%emt 0:00:00]} Ra1+ {[%emt 0:00:00]} 40. Kb7 {[%emt 0:00:00]} Kg5 {[%emt 0:00:00]} 41. b6 {[%emt 0:00:00]} Rc1 {[%emt 0:00:00]} 42. Ka7 {[%emt 0:00:00] Strongly threatening Ra2.} Ra1+ {[%emt 0:00:00]} 43. Kb8 {[%emt 0:00:00] Weighted Error Value: White=0.05 (flawless) /Black=0.73  Mistake:       	---       	Black=6      Inaccurate:     	White=3     	Black=3      OK:         	White=5     	Black=8      Best:        	White=5     	Black=2      Strong:       	White=1     	---        Brilliant:      	---       	Black=1} 1-0

[Event "8th Montevideo Open 2025"]
[Site "Montevideo"]
[Date "2025.02.04"]
[Round "4.16"]
[White "Meza, Anahi"]
[Black "Errazola, Mauricio"]
[Result "1-0"]
[Annotator "NA RC"]
[ECO "E11"]
[WhiteElo "2038"]
[BlackElo "1891"]
[PlyCount "51"]
[EventDate "2025.02.01"]
[EventType "swiss"]
[EventCountry "URU"]
[SourceTitle "playchess.com"]
[Source "ChessBase"]
[SourceQuality "1"]
[TimeControl "5400+30"]

1. d4 {[%emt 0:00:04]} Nf6 {[%emt 0:00:06]} 2. c4 {[%emt 0:00:09]} e6 {[%emt 0:00:04]} 3. Nf3 {[%emt 0:00:22]} Bb4+ {[%emt 0:01:03]} 4. Bd2 {[%emt 0:00:33]} Qe7 {[%emt 0:00:17]} 5. a3 {[%emt 0:12:02]} Bxd2+ {[%emt 0:00:50]} 6. Qxd2 {[%emt 0:00:08]} b6 {[%emt 0:01:09]} 7. Nc3 {[%emt 0:00:28]} Bb7 {[%emt 0:00:56]} 8. Qc2 {[%emt 0:10:55]} O-O {[%emt 0:03:35]} 9. e4 {[%emt 1:10:19]} d6 {[%emt 1:27:00]} 10. Bd3 {[%emt 0:00:30]} g6 {[%emt 0:00:30]} 11. O-O {[%emt 0:00:00]} Nbd7 {[%emt 0:00:30]} 12. e5 {[%emt 0:00:00]} dxe5 {[%emt 0:00:00]} 13. dxe5 {[%emt 0:00:00]} Ng4 {[%emt 0:00:00]} 14. Be4 {[%emt 0:00:00]} c6 {[%emt 0:00:00]} 15. Qe2 {[%emt 0:00:00]} Ngxe5 {[%emt 0:00:00]} 16. Rad1 {[%emt 0:03:00]} Nxf3+ {[%emt 0:00:00]} 17. Qxf3 {[%emt 0:00:00]} Rac8 {[%emt 0:00:00]} 18. Rd2 {[%emt 0:00:00]} Nf6 {[%emt 0:00:00]} 19. Rfd1 {[%emt 0:00:00]} Rc7 {[%emt 0:00:00]} 20. Bc2 {[%emt 0:00:00]} c5 {[%emt 0:00:00]} 21. Qf4 {[%emt 0:00:00]} Nh5 {[%emt 0:00:00]} 22. Qh6 {[%emt 0:00:00]} Qh4 {[%emt 0:00:00]} 23. f3 {[%emt 0:00:00]} Qxc4 {[%emt 0:00:00]} 24. Be4 {[%emt 0:00:00]} Nf6 {[%emt 0:00:00]} 25. Rd8 {[%emt 0:00:00]} Rc8 {[%emt 0:01:36]} 26. Qxf8# {[%emt 0:05:00]} 1-0

[Event "8th Montevideo Open 2025"]
[Site "Montevideo"]
[Date "2025.02.04"]
[Round "4.17"]
[White "Volpe, Agustin"]
[Black "Saralegui, Mario"]
[Result "1-0"]
[Annotator "NA RC"]
[ECO "A56"]
[WhiteElo "1873"]
[BlackElo "2034"]
[PlyCount "117"]
[EventDate "2025.02.01"]
[EventType "swiss"]
[EventCountry "URU"]
[SourceTitle "playchess.com"]
[Source "ChessBase"]
[SourceQuality "1"]
[TimeControl "5400+30"]

1. d4 {[%emt 0:01:34]} Nf6 {[%emt 0:00:24]} 2. c4 {[%emt 0:00:09]} c5 {[%emt 0:00:26]} 3. d5 {[%emt 0:00:08]} e5 {[%emt 0:00:15]} 4. Nc3 {[%emt 0:00:56]} d6 {[%emt 0:00:05]} 5. e4 {[%emt 0:00:29]} Be7 {[%emt 0:00:08]} 6. Bd3 {[%emt 0:01:44]} a6 {[%emt 0:00:07]} 7. a4 {[%emt 0:00:31]} b6 {[%emt 0:00:05]} 8. Nge2 {[%emt 0:00:36]} Nbd7 {[%emt 0:00:08]} 9. O-O {[%emt 0:00:21]} O-O {[%emt 0:00:05]} 10. Qc2 {[%emt 0:07:36]} g6 {[%emt 0:00:35]} 11. h3 {[%emt 0:02:46]} Ne8 {[%emt 0:00:08]} 12. f4 {[%emt 0:00:47]} exf4 {[%emt 0:00:09]} 13. Bxf4 {[%emt 0:00:08]} Ne5 {[%emt 0:00:05]} 14. Bxe5 {[%emt 0:00:25]} dxe5 {[%emt 0:00:05]} 15. a5 {[%emt 0:04:06]} bxa5 {[%emt 0:02:33]} 16. Qa4 {[%emt 0:03:54]} Bg5 {[%emt 0:01:15]} 17. Qxa5 {[%emt 0:01:01]} Be3+ {[%emt 0:02:38]} 18. Kh2 {[%emt 0:01:23]} Qxa5 {[%emt 0:02:37]} 19. Rxa5 {[%emt 0:00:07]} Rb8 {[%emt 0:00:16]} 20. Nd1 {[%emt 0:01:25]} Bd2 {[%emt 0:07:24]} 21. Rxc5 {[%emt 0:24:03]} Bd7 {[%emt 0:01:16]} 22. Nec3 {[%emt 0:02:22]} f5 {[%emt 0:04:23]} 23. Rf2 {[%emt 0:18:47]} Bh6 {[%emt 0:06:48]} 24. Ra5 {[%emt 0:00:59]} Nd6 {[%emt 0:03:22]} 25. Rxa6 {[%emt 0:06:17]} Nxe4 {[%emt 0:03:03]} 26. Bxe4 {[%emt 0:01:30]} fxe4 {[%emt 0:01:44]} 27. Nxe4 {[%emt 0:02:15]} Bf5 {[%emt 0:01:15]} 28. Ndc3 {[%emt 0:02:12]} Bxe4 {[%emt 0:05:26]} 29. Rxf8+ {[%emt 0:01:01]} Kxf8 {[%emt 0:02:08]} 30. Rf6+ {[%emt 0:01:21]} Ke7 {[%emt 0:01:05]} 31. Nxe4 {[%emt 0:00:09]} Bf4+ {[%emt 0:00:13]} 32. g3 {[%emt 0:01:33]} Rxb2+ {[%emt 0:01:44]} 33. Kh1 {[%emt 0:00:06]} Rb1+ {[%emt 0:01:23]} 34. Kg2 {[%emt 0:00:15]} Rb2+ {[%emt 0:00:06]} 35. Kf1 {[%emt 0:00:23]} Be3 {[%emt 0:09:36]} 36. Re6+ {[%emt 0:00:21]} Kd8 {[%emt 0:00:15]} 37. Rxe5 {[%emt 0:00:17]} Rc2 {[%emt 0:00:47]} 38. Nd6 {[%emt 0:01:39]} Bf2 {[%emt 0:02:13]} 39. Re2 {[%emt 0:04:08]} Rxe2 {[%emt 0:07:31]} 40. Kxe2 {[%emt 0:00:00]} Bxg3 {[%emt 0:00:17]} 41. Ne4 {[%emt 0:00:03]} Bh4 {[%emt 0:00:10]} 42. Kf3 {[%emt 0:01:00]} h5 {[%emt 0:00:08]} 43. Kf4 {[%emt 0:01:04]} Kd7 {[%emt 0:02:01]} 44. Ke5 {[%emt 0:00:17]} g5 {[%emt 0:00:33]} 45. Kf5 {[%emt 0:00:21]} g4 {[%emt 0:00:30]} 46. hxg4 {[%emt 0:00:06]} hxg4 {[%emt 0:00:14]} 47. Kxg4 {[%emt 0:00:04]} Be7 {[%emt 0:00:45]} 48. Kf5 {[%emt 0:00:11]} Ba3 {[%emt 0:00:11]} 49. c5 {[%emt 0:01:52]} Bb4 {[%emt 0:02:01]} 50. Ke5 {[%emt 0:00:43]} Ba3 {[%emt 0:01:31]} 51. Kd4 {[%emt 0:00:05]} Kc7 {[%emt 0:00:58]} 52. Kc4 {[%emt 0:00:06]} Bc1 {[%emt 0:02:31]} 53. Kb5 {[%emt 0:00:06]} Bf4 {[%emt 0:00:48]} 54. d6+ {[%emt 0:00:36]} Kd7 {[%emt 0:01:37]} 55. c6+ {[%emt 0:00:06]} Kc8 {[%emt 0:00:52]} 56. Kc5 {[%emt 0:00:32]} Be3+ {[%emt 0:01:40]} 57. Kd5 {[%emt 0:00:05]} Bb6 {[%emt 0:00:18]} 58. Ke6 {[%emt 0:00:10]} Kd8 {[%emt 0:01:44]} 59. Nf6 {[%emt 0:00:33]} 1-0

[Event "8th Montevideo Open 2025"]
[Site "Montevideo"]
[Date "2025.02.04"]
[Round "4.18"]
[White "Manteiga, Franco"]
[Black "Zaruski, Julio"]
[Result "1-0"]
[Annotator "RC"]
[ECO "D85"]
[WhiteElo "2029"]
[BlackElo "1860"]
[PlyCount "97"]
[EventDate "2025.02.01"]
[EventType "swiss"]
[EventCountry "URU"]
[SourceTitle "playchess.com"]
[Source "ChessBase"]
[SourceQuality "1"]
[TimeControl "5400+30"]

1. d4 {[%emt 0:00:04]} Nf6 {[%emt 0:10:36]} 2. c4 {[%emt 0:00:06]} g6 {[%emt 0:00:32]} 3. Nc3 {[%emt 0:00:07]} d5 {[%emt 0:00:03]} 4. cxd5 {[%emt 0:00:04]} Nxd5 {[%emt 0:00:06]} 5. Bd2 {[%emt 0:00:03]} Bg7 {[%emt 0:00:18]} 6. e4 {[%emt 0:00:06]} Nb6 {[%emt 0:00:24]} 7. Be3 {[%emt 0:00:28]} O-O {[%emt 0:00:33]} 8. Be2 {[%emt 0:01:17]} e5 {[%emt 0:06:31]} 9. Nf3 {[%emt 0:01:30]} exd4 {[%emt 0:01:38]} 10. Nxd4 {[%emt 0:00:35]} a6 {[%emt 0:01:03]} 11. O-O {[%emt 0:04:43]} N8d7 {[%emt 0:02:22]} 12. Qc2 {[%emt 0:00:30]} c5 13. Nb3 {[%emt 0:00:30]} Qc7 {[%emt 0:01:00]} 14. Rad1 {[%emt 0:00:30]} c4 {[%emt 0:00:30]} 15. Nd2 {[%emt 0:00:30]} Nf6 {[%emt 0:00:30]} 16. Bxb6 {[%emt 0:00:30]} Qxb6 {[%emt 0:00:30]} 17. Nxc4 {[%emt 0:00:30]} Qc7 {[%emt 0:00:30]} 18. Ne3 {[%emt 0:00:30]} Be6 {[%emt 0:00:30]} 19. Ned5 {[%emt 0:00:30]} Qc5 {[%emt 0:00:30]} 20. b4 {[%emt 0:00:30]} Qa7 {[%emt 0:00:30]} 21. Nc7 {[%emt 0:00:30]} Rac8 {[%emt 0:00:30]} 22. Nxe6 {[%emt 0:00:30]} fxe6 {[%emt 0:00:30]} 23. Qb3 {[%emt 0:00:30]} Rxc3 {[%emt 0:00:30]} 24. Qxc3 {[%emt 0:00:30]} Nxe4 {[%emt 0:00:30]} 25. Qe3 {[%emt 0:00:30]} Qxe3 {[%emt 0:00:30]} 26. fxe3 {[%emt 0:00:30]} Nc3 {[%emt 0:00:30]} 27. Rxf8+ {[%emt 0:00:30]} Bxf8 {[%emt 0:00:30]} 28. Rd2 {[%emt 0:00:30]} Nxe2+ {[%emt 0:00:30]} 29. Rxe2 {[%emt 0:00:30]} Bxb4 {[%emt 0:00:30]} 30. Rc2 {[%emt 0:00:30]} Bd6 {[%emt 0:00:30]} 31. Rd2 {[%emt 0:00:30]} Bc5 {[%emt 0:00:30]} 32. Kf2 {[%emt 0:00:30]} b6 {[%emt 0:00:30]} 33. Rd7 {[%emt 0:00:30]} g5 {[%emt 0:00:30]} 34. Kf3 {[%emt 0:00:30]} h5 {[%emt 0:00:30]} 35. Ra7 {[%emt 0:00:30]} a5 {[%emt 0:00:30]} 36. a4 {[%emt 0:00:30]} g4+ {[%emt 0:00:30]} 37. Ke4 {[%emt 0:00:30]} Bd6 {[%emt 0:00:30]} 38. h3 {[%emt 0:00:30]} gxh3 {[%emt 0:00:30]} 39. gxh3 {[%emt 0:00:30]} h4 {[%emt 0:00:30]} 40. Rb7 {[%emt 0:00:30]} Bc5 {[%emt 0:00:30]} 41. Kd3 {[%emt 0:00:30]} Kh8 {[%emt 0:00:30]} 42. e4 {[%emt 0:00:30]} e5 {[%emt 0:00:30]} 43. Kc4 {[%emt 0:00:30]} Kg8 {[%emt 0:00:30]} 44. Kb5 {[%emt 0:00:30]} Bd4 {[%emt 0:00:30]} 45. Rxb6 {[%emt 0:00:30]} Bc3 {[%emt 0:00:30]} 46. Rb7 {[%emt 0:00:30]} Kh8 {[%emt 0:00:30]} 47. Ra7 {[%emt 0:00:30]} Kg8 {[%emt 0:00:30]} 48. Rxa5 {[%emt 0:00:30]} Bxa5 {[%emt 0:00:30]} 49. Kxa5 {[%emt 0:00:30]} 1-0

[Event "8th Montevideo Open 2025"]
[Site "Montevideo"]
[Date "2025.02.04"]
[Round "4.19"]
[White "Diaz Delograsi, Francisco"]
[Black "Guerrero, Alvaro"]
[Result "1-0"]
[Annotator "NA RC"]
[ECO "E67"]
[WhiteElo "1846"]
[BlackElo "2028"]
[PlyCount "85"]
[EventDate "2025.02.01"]
[EventType "swiss"]
[EventCountry "URU"]
[SourceTitle "playchess.com"]
[Source "ChessBase"]
[SourceQuality "1"]
[TimeControl "5400+30"]

1. Nf3 {[%emt 0:20:20]} g6 {[%emt 0:07:02]} 2. d4 {[%emt 0:00:09]} d6 {[%emt 0:00:19]} 3. c4 {[%emt 0:00:07]} Bg7 {[%emt 0:00:19]} 4. g3 {[%emt 0:00:06]} Nd7 {[%emt 0:00:06]} 5. Bg2 {[%emt 0:00:06]} e5 {[%emt 0:00:03]} 6. Nc3 {[%emt 0:01:31]} Ngf6 {[%emt 0:01:18]} 7. O-O {[%emt 0:01:15]} O-O {[%emt 0:00:21]} 8. Bg5 {[%emt 0:03:57]} h6 {[%emt 0:00:08]} 9. Bxf6 {[%emt 0:02:30]} Bxf6 {[%emt 0:00:04]} 10. e3 {[%emt 0:05:23]} Bg7 {[%emt 0:00:38]} 11. h4 {[%emt 0:00:10]} f5 {[%emt 0:01:43]} 12. dxe5 {[%emt 0:02:29]} dxe5 {[%emt 0:00:19]} 13. Qd5+ {[%emt 0:01:34]} Kh8 {[%emt 0:01:20]} 14. Rad1 {[%emt 0:01:08]} c6 {[%emt 0:02:44]} 15. Qd2 {[%emt 0:02:13]} Qe7 {[%emt 0:00:36]} 16. Qd6 {[%emt 0:02:45]} Qf7 {[%emt 0:00:10]} 17. c5 {[%emt 0:04:05]} e4 {[%emt 0:00:44]} 18. Nd4 {[%emt 0:02:56]} Be5 {[%emt 0:01:59]} 19. Qe6 {[%emt 0:00:14]} Qg7 {[%emt 0:02:19]} 20. Qc4 {[%emt 0:02:52]} Re8 {[%emt 0:00:19]} 21. Nce2 {[%emt 0:03:05]} Bf6 {[%emt 0:01:25]} 22. h5 {[%emt 0:00:29]} Ne5 {[%emt 0:00:07]} 23. Qb3 {[%emt 0:00:22]} Nd3 {[%emt 0:01:43]} 24. hxg6 {[%emt 0:01:22]} Nxc5 {[%emt 0:00:28]} 25. Qf7 {[%emt 0:01:06]} Nd3 {[%emt 0:01:13]} 26. Qxe8+ {[%emt 0:00:08]} Qg8 {[%emt 0:00:10]} 27. Qxg8+ {[%emt 0:00:27]} Kxg8 {[%emt 0:00:04]} 28. Rd2 {[%emt 0:00:13]} c5 {[%emt 0:01:26]} 29. Nb3 {[%emt 0:00:39]} Bd7 {[%emt 0:04:25]} 30. Nf4 {[%emt 0:00:14]} c4 {[%emt 0:00:57]} 31. Nd4 {[%emt 0:00:19]} Rc8 {[%emt 0:01:26]} 32. Bh3 {[%emt 0:00:44]} Rc5 {[%emt 0:01:14]} 33. Rfd1 {[%emt 0:02:07]} b5 {[%emt 0:00:59]} 34. Rc2 {[%emt 0:00:10]} Be7 {[%emt 0:03:52]} 35. f3 {[%emt 0:02:18]} Nb4 {[%emt 0:01:41]} 36. Rcd2 {[%emt 0:00:23]} exf3 {[%emt 0:01:02]} 37. Nxf3 {[%emt 0:00:31]} Bc6 {[%emt 0:00:10]} 38. Nd4 {[%emt 0:01:39]} Be4 {[%emt 0:00:14]} 39. a3 {[%emt 0:00:28]} Nd3 {[%emt 0:00:35]} 40. Bg2 {[%emt 0:00:26]} a5 {[%emt 0:03:21]} 41. Nxd3 {[%emt 0:00:47]} Bxd3 {[%emt 0:00:13]} 42. Ne6 {[%emt 0:01:07]} Re5 {[%emt 0:00:15]} 43. Nf4 {[%emt 0:00:07]} 1-0

[Event "8th Montevideo Open 2025"]
[Site "Montevideo"]
[Date "2025.02.04"]
[Round "4.20"]
[White "Martello, Benjamin"]
[Black "Martinez Lopez, Antonio Javier"]
[Result "1-0"]
[Annotator "NA RC"]
[ECO "D38"]
[WhiteElo "1968"]
[BlackElo "1856"]
[PlyCount "79"]
[EventDate "2025.02.01"]
[EventType "swiss"]
[EventCountry "URU"]
[SourceTitle "playchess.com"]
[Source "ChessBase"]
[SourceQuality "1"]
[TimeControl "5400+30"]

1. Nf3 {[%emt 0:00:15]} d5 {[%emt 0:06:55]} 2. c4 {[%emt 0:00:08]} e6 {[%emt 0:00:11]} 3. d4 {[%emt 0:00:07]} Nf6 {[%emt 0:00:27]} 4. Bg5 {[%emt 0:00:08]} Bb4+ {[%emt 0:00:51]} 5. Nc3 {[%emt 0:00:05]} O-O {[%emt 0:00:14]} 6. e3 {[%emt 0:00:05]} h6 {[%emt 0:01:30]} 7. Bh4 {[%emt 0:01:06]} g5 {[%emt 0:01:42]} 8. Bg3 {[%emt 0:00:08]} Ne4 {[%emt 0:00:24]} 9. Qb3 {[%emt 0:01:13]} Nc6 {[%emt 0:02:05]} 10. Bd3 {[%emt 0:04:42]} a5 {[%emt 0:03:48]} 11. O-O {[%emt 0:02:51]} Bxc3 {[%emt 0:05:21]} 12. bxc3 {[%emt 0:01:14]} Ne7 {[%emt 0:01:16]} 13. Qc2 {[%emt 0:13:42]} Nxg3 {[%emt 0:05:18]} 14. hxg3 {[%emt 0:00:01]} f5 {[%emt 0:00:49]} 15. g4 {[%emt 0:09:33]} Ng6 {[%emt 0:09:38]} 16. gxf5 {[%emt 0:01:06]} exf5 {[%emt 0:00:37]} 17. cxd5 {[%emt 0:00:34]} g4 {[%emt 0:07:22]} 18. Nd2 {[%emt 0:01:04]} Qh4 {[%emt 0:02:28]} 19. Rfe1 {[%emt 0:20:46]} g3 {[%emt 0:07:33]} 20. Nf3 {[%emt 0:00:26]} gxf2+ {[%emt 0:06:55]} 21. Qxf2 {[%emt 0:00:09]} Qg4 {[%emt 0:00:11]} 22. Ne5 {[%emt 0:03:58]} Qg5 {[%emt 0:04:38]} 23. Nxg6 {[%emt 0:01:02]} Qxg6 {[%emt 0:00:12]} 24. Qf4 {[%emt 0:00:26]} Rf7 {[%emt 0:00:40]} 25. Re2 {[%emt 0:01:24]} Qg5 {[%emt 0:02:46]} 26. Rf1 {[%emt 0:00:40]} b6 {[%emt 0:05:18]} 27. d6 {[%emt 0:02:36]} Qxf4 {[%emt 0:02:24]} 28. Rxf4 {[%emt 0:03:54]} cxd6 {[%emt 0:00:31]} 29. Bc4 {[%emt 0:00:14]} Ba6 {[%emt 0:01:09]} 30. Bxf7+ {[%emt 0:00:11]} Kxf7 {[%emt 0:00:08]} 31. Rxf5+ {[%emt 0:00:08]} Ke6 {[%emt 0:00:25]} 32. Ref2 {[%emt 0:00:09]} Rc8 {[%emt 0:00:52]} 33. d5+ {[%emt 0:00:28]} Ke7 {[%emt 0:00:33]} 34. Rf7+ {[%emt 0:00:05]} Kd8 {[%emt 0:00:18]} 35. Rf8+ {[%emt 0:00:06]} Kc7 {[%emt 0:00:07]} 36. R2f7+ {[%emt 0:00:05]} Kb8 {[%emt 0:00:15]} 37. Rxc8+ {[%emt 0:00:04]} Kxc8 {[%emt 0:00:09]} 38. e4 {[%emt 0:01:11]} Bc4 {[%emt 0:00:07]} 39. a3 {[%emt 0:00:08]} Bd3 {[%emt 0:00:08]} 40. Re7 {[%emt 0:00:13]} 1-0

[Event "8th Montevideo Open 2025"]
[Site "Montevideo"]
[Date "2025.02.04"]
[Round "4.21"]
[White "Tacoronte, Daniel"]
[Black "Izquierdo, Daniel"]
[Result "0-1"]
[Annotator "NA RC"]
[ECO "A04"]
[WhiteElo "1813"]
[BlackElo "2069"]
[PlyCount "72"]
[EventDate "2025.02.01"]
[EventType "swiss"]
[EventCountry "URU"]
[SourceTitle "playchess.com"]
[Source "ChessBase"]
[SourceQuality "1"]
[TimeControl "5400+30"]

1. Nf3 {[%emt 0:12:21]} c5 {[%emt 0:02:08]} 2. g3 {[%emt 0:00:40]} b6 {[%emt 0:01:12]} 3. Bg2 {[%emt 0:00:05]} Bb7 {[%emt 0:00:12]} 4. O-O {[%emt 0:00:14]} g6 {[%emt 0:00:39]} 5. e3 {[%emt 0:02:18]} Bg7 {[%emt 0:01:24]} 6. d4 {[%emt 0:00:26]} Nf6 {[%emt 0:00:31]} 7. c4 {[%emt 0:00:22]} O-O {[%emt 0:01:32]} 8. Nbd2 {[%emt 0:07:02]} e6 {[%emt 0:06:03]} 9. b3 {[%emt 0:00:28]} Qc7 {[%emt 0:03:55]} 10. Bb2 {[%emt 0:00:10]} d6 {[%emt 0:05:42]} 11. Rc1 {[%emt 0:02:10]} Nbd7 {[%emt 0:01:16]} 12. Qc2 {[%emt 0:04:00]} Rac8 {[%emt 0:01:33]} 13. Rfd1 {[%emt 0:02:14]} Rfd8 {[%emt 0:01:57]} 14. e4 {[%emt 0:08:07]} cxd4 {[%emt 0:00:48]} 15. Nxd4 {[%emt 0:00:21]} a6 {[%emt 0:00:26]} 16. b4 {[%emt 0:07:31]} Qb8 {[%emt 0:04:38]} 17. Qb3 {[%emt 0:03:35]} Qa8 {[%emt 0:01:13]} 18. f3 {[%emt 0:01:08]} Bh6 {[%emt 0:07:12]} 19. Rc2 {[%emt 0:06:45]} e5 {[%emt 0:02:54]} 20. Ne2 {[%emt 0:01:04]} b5 {[%emt 0:00:34]} 21. cxb5 {[%emt 0:05:59]} axb5 {[%emt 0:02:09]} 22. Rxc8 {[%emt 0:09:47]} Rxc8 {[%emt 0:53:32]} 23. Nc3 {[%emt 0:00:10]} d5 {[%emt 0:00:00]} 24. Nxb5 {[%emt 0:03:15]} Qa6 {[%emt 0:00:00]} 25. a4 {[%emt 0:02:40]} Bc6 {[%emt 0:00:00]} 26. Bf1 {[%emt 0:00:42]} Qb6+ {[%emt 0:00:00]} 27. Kg2 {[%emt 0:00:41]} dxe4 {[%emt 0:00:00]} 28. Nd6 {[%emt 0:04:55]} exf3+ {[%emt 0:00:00]} 29. Nxf3 {[%emt 0:00:40]} Rf8 {[%emt 0:00:00]} 30. Bc4 {[%emt 0:06:03]} Ng4 {[%emt 0:04:00]} 31. Nxf7 {[%emt 0:09:18]} Qf2+ {[%emt 0:00:00]} 32. Kh3 {[%emt 0:00:04]} Kg7 {[%emt 0:00:08]} 33. Nxh6 {[%emt 0:00:58]} Kxh6 {[%emt 0:00:44]} 34. Bc1+ {[%emt 0:00:10]} Kh5 {[%emt 0:00:31]} 35. Rf1 {[%emt 0:00:55]} Bxf3 {[%emt 0:00:25]} 36. Qb2 {[%emt 0:00:38]} Bg2# {[%emt 0:00:20]} 0-1